Workbook

Sheet map
B2: Choropleth Map - Yemen by Governorates | N2: www.clearlyandsimply.com
L4: Measure
L5: Colors
N7: hover over the map with the mouse to see the region names and the values
M9: Legend
N11: =control!D26 -> no data
N12: =control!D27 -> 7.000 to 11.000
N13: =control!D28 -> 11.000 to 15.000
N14: =control!D29 -> 15.000 to 19.000
N15: =control!D30 -> 19.000 to 23.000
N16: =control!D31 -> 23.000 to 27.000
N17: =control!D32 -> 27.000 to 31.000
N18: =control!D33 -> 31.000 to 35.000
N19: =control!D34 -> 35.000 to 39.000
N20: =control!D35 -> 39.000 to 43.000
N21: =control!D36 -> 43.000 or more
N23: =data!E2 -> Source: Dummy Data
N24: www.clearlyandsimply.com

Sheet data
B2: Data | E2: Source: Dummy Data | K2: Selection / Shape Definition
B4: The source data: governorates | K4: Calculation of selected data, shape name definition and shape index
B5: No. | C5: Governorates English | D5: Governorates Arabic | E5: Random | F5: First 5 only, no data in all others | G5: 2 Selected Governorates | H5: Ascending % (source data order) | I5: Descending value (source data order) | K5: Selection | L5: Shape Names | M5: Shape Index
B6: 1 | C6: Ibb | D6: اب | E6: 19545 | F6: 33260 | G6: 1 | H6: 0.01 | I6: 100000 | K6: =IF(ISBLANK(INDEX($E6:$I6,1,control!$C$18)),"",INDEX($E6:$I6,1,control!$C$18)) -> 19545 | L6: S_YE11 | M6: 1
B7: 2 | C7: Abyan | D7: ابين | E7: 14166 | F7: 43857 | G7: 1 | H7: 0.02 | I7: 95000 | K7: =IF(ISBLANK(INDEX($E7:$I7,1,control!$C$18)),"",INDEX($E7:$I7,1,control!$C$18)) -> 14166 | L7: S_YE12 | M7: 2
B8: 3 | C8: Sana'a City | D8: امانة العاصمه | E8: 14375 | F8: 18807 | G8: 1 | H8: 0.03 | I8: 90000 | K8: =IF(ISBLANK(INDEX($E8:$I8,1,control!$C$18)),"",INDEX($E8:$I8,1,control!$C$18)) -> 14375 | L8: S_YE13 | M8: 3
B9: 4 | C9: Al Bayda | D9: البيضاء | E9: 20048 | F9: 40596 | G9: 1 | H9: 0.04 | I9: 85000 | K9: =IF(ISBLANK(INDEX($E9:$I9,1,control!$C$18)),"",INDEX($E9:$I9,1,control!$C$18)) -> 20048 | L9: S_YE14 | M9: 4
B10: 5 | C10: Ta'iz | D10: تعز | E10: 30138 | F10: 34322 | G10: 1 | H10: 0.05 | I10: 80000 | K10: =IF(ISBLANK(INDEX($E10:$I10,1,control!$C$18)),"",INDEX($E10:$I10,1,control!$C$18)) -> 30138 | L10: S_YE15 | M10: 5
B11: 6 | C11: Al Jawf | D11: الجوف | E11: 20391 | G11: 1 | H11: 0.06 | I11: 75000 | K11: =IF(ISBLANK(INDEX($E11:$I11,1,control!$C$18)),"",INDEX($E11:$I11,1,control!$C$18)) -> 20391 | L11: S_YE16 | M11: 6
B12: 7 | C12: Hajjah | D12: حجه | E12: 49737 | G12: 1 | H12: 0.07 | I12: 70000 | K12: =IF(ISBLANK(INDEX($E12:$I12,1,control!$C$18)),"",INDEX($E12:$I12,1,control!$C$18)) -> 49737 | L12: S_YE17 | M12: 7
B13: 8 | C13: Al Hodeidah | D13: الحديده | E13: 33780 | G13: 1 | H13: 0.08 | I13: 65000 | K13: =IF(ISBLANK(INDEX($E13:$I13,1,control!$C$18)),"",INDEX($E13:$I13,1,control!$C$18)) -> 33780 | L13: S_YE18 | M13: 8
B14: 9 | C14: Hadramawt | D14: حضرموت | E14: 34751 | G14: 100 | H14: 0.09 | I14: 60000 | K14: =IF(ISBLANK(INDEX($E14:$I14,1,control!$C$18)),"",INDEX($E14:$I14,1,control!$C$18)) -> 34751 | L14: S_YE19 | M14: 9
B15: 10 | C15: Dhamar | D15: ذمار | E15: 21532 | G15: 1 | H15: 0.1 | I15: 55000 | K15: =IF(ISBLANK(INDEX($E15:$I15,1,control!$C$18)),"",INDEX($E15:$I15,1,control!$C$18)) -> 21532 | L15: S_YE20 | M15: 10
B16: 11 | C16: Shabwah | D16: شبوه | E16: 18374 | G16: 1 | H16: 0.11 | I16: 50000 | K16: =IF(ISBLANK(INDEX($E16:$I16,1,control!$C$18)),"",INDEX($E16:$I16,1,control!$C$18)) -> 18374 | L16: S_YE21 | M16: 11
B17: 12 | C17: Sa'dah | D17: صعده | E17: 14142 | G17: 1 | H17: 0.12 | I17: 45000 | K17: =IF(ISBLANK(INDEX($E17:$I17,1,control!$C$18)),"",INDEX($E17:$I17,1,control!$C$18)) -> 14142 | L17: S_YE22 | M17: 12
B18: 13 | C18: Sana'a | D18: صنعاء | E18: 25911 | G18: 1 | H18: 0.13 | I18: 40000 | K18: =IF(ISBLANK(INDEX($E18:$I18,1,control!$C$18)),"",INDEX($E18:$I18,1,control!$C$18)) -> 25911 | L18: S_YE23 | M18: 13
B19: 14 | C19: Aden | D19: عدن | E19: 30917 | G19: 1 | H19: 0.14 | I19: 35000 | K19: =IF(ISBLANK(INDEX($E19:$I19,1,control!$C$18)),"",INDEX($E19:$I19,1,control!$C$18)) -> 30917 | L19: S_YE24 | M19: 14
B20: 15 | C20: Lahj | D20: لحج | E20: 39506 | G20: 1 | H20: 0.15 | I20: 30000 | K20: =IF(ISBLANK(INDEX($E20:$I20,1,control!$C$18)),"",INDEX($E20:$I20,1,control!$C$18)) -> 39506 | L20: S_YE25 | M20: 15
B21: 16 | C21: Ma'rib | D21: مارب | E21: 49598 | G21: 1 | H21: 0.16 | I21: 25000 | K21: =IF(ISBLANK(INDEX($E21:$I21,1,control!$C$18)),"",INDEX($E21:$I21,1,control!$C$18)) -> 49598 | L21: S_YE26 | M21: 16
B22: 17 | C22: Al Mahwit | D22: المحويت | E22: 44506 | G22: 1 | H22: 0.17 | I22: 20000 | K22: =IF(ISBLANK(INDEX($E22:$I22,1,control!$C$18)),"",INDEX($E22:$I22,1,control!$C$18)) -> 44506 | L22: S_YE27 | M22: 17
B23: 18 | C23: Al Maharah | D23: المهره | E23: 21154 | G23: 1 | H23: 0.18 | I23: 15000 | K23: =IF(ISBLANK(INDEX($E23:$I23,1,control!$C$18)),"",INDEX($E23:$I23,1,control!$C$18)) -> 21154 | L23: S_YE28 | M23: 18
B24: 19 | C24: Amran | D24: عمران | E24: 23556 | G24: 100 | H24: 0.19 | I24: 10000 | K24: =IF(ISBLANK(INDEX($E24:$I24,1,control!$C$18)),"",INDEX($E24:$I24,1,control!$C$18)) -> 23556 | L24: S_YE29 | M24: 19
B25: 20 | C25: Ad Dali' | D25: الضالع | E25: 6843 | G25: 1 | H25: 0.2 | I25: 5000 | K25: =IF(ISBLANK(INDEX($E25:$I25,1,control!$C$18)),"",INDEX($E25:$I25,1,control!$C$18)) -> 6843 | L25: S_YE30 | M25: 20
B26: 21 | C26: Raymah | D26: ريمه | E26: 27182 | G26: 1 | H26: 0.21 | I26: 0 | K26: =IF(ISBLANK(INDEX($E26:$I26,1,control!$C$18)),"",INDEX($E26:$I26,1,control!$C$18)) -> 27182 | L26: S_YE31 | M26: 21

Sheet control
B2: Control
B4: Worksheet and Code Parameters
B6: Sheet with map | C6: 1 | D6: Sheet index of worksheet with the maps
B7: Show Status Bar | C7: FALSE | D7: Status bar information during map update will be displayed (or not, if FALSE)
B9: Metrics
C11: Metrics | D11: Format Values | E11: Format Legend | F11: Round factor | H11: Min | I11: Max | J11: Bin size | K11: Start | L11: Range
C12: =data!$E$5 -> Random | D12: #,##0 | E12: #.##0 | F12: -3 | H12: =MIN(data!$E$6:$E$26) -> 6843 | I12: =MAX(data!$E$6:$E$26) -> 49737 | J12: =ROUND((I12-H12)/COUNTA($C$27:$C$36),F12) -> 4000 | K12: =ROUND(H12,F12) -> 7000 | L12: =I12-K12 -> 42737
C13: =data!$F$5 -> First 5 only, no data in all others | D13: #,##0 | E13: #.##0 | F13: 0 | H13: =MIN(data!$F$6:$F$26) -> 18807 | I13: =MAX(data!$F$6:$F$26) -> 43857 | J13: =ROUND((I13-H13)/COUNTA($C$27:$C$36),F13) -> 2505 | K13: 18807 | L13: =I13-K13 -> 25050
C14: =data!$G$5 -> 2 Selected Governorates | D14: #,##0 | E14: #.##0 | F14: 0 | H14: =MIN(data!$G$6:$G$26) -> 1 | I14: =MAX(data!$G$6:$G$26) -> 100 | J14: =ROUND((I14-H14)/COUNTA($C$27:$C$36),F14) -> 10 | K14: 1 | L14: 99
C15: =data!$H$5 -> Ascending % (source data order) | D15: 0.0% | E15: 0% | F15: 2 | H15: =MIN(data!$H$6:$H$26) -> 0.01 | I15: =MAX(data!$H$6:$H$26) -> 0.21 | J15: =ROUND((I15-H15)/COUNTA($C$27:$C$36),F15) -> 0.02 | K15: 0.01 | L15: 0.2
C16: =data!$I$5 -> Descending value (source data order) | D16: #,##0 | E16: #.##0 | F16: -3 | H16: =MIN(data!$I$6:$I$26) -> 0 | I16: =MAX(data!$I$6:$I$26) -> 100000 | J16: =ROUND((I16-H16)/COUNTA($C$27:$C$36),F16) -> 10000 | K16: 0 | L16: 100000
B18: Selection | C18: 1 | D18: =INDEX(D12:D16,$C$18) -> #,##0 | E18: =INDEX(E12:E16,$C$18) -> #.##0 | F18: =INDEX(F12:F16,$C$18) -> -3 | H18: =INDEX(H12:H16,$C$18) -> 6843 | I18: =INDEX(I12:I16,$C$18) -> 49737 | J18: =INDEX(J12:J16,$C$18) -> 4000 | K18: =INDEX(K12:K16,$C$18) -> 7000 | L18: =INDEX(L12:L16,$C$18) -> 42737
B21: Bins, Color Scales and Legend
E23: Contrast | K23: No Scale | L23: Highlight | N23: Focus | P23: Loaded | R23: Pairs, Triplets, Quads, Quints | V23: Stepped | Z23: Smear
E24: 1 | F24: =E24+1 -> 2 | G24: =F24+1 -> 3 | H24: 4 | I24: 5 | J24: 6 | K24: 7 | L24: 8 | M24: 9 | N24: 10 | O24: 11 | P24: 12 | Q24: 13 | R24: 14 | S24: 15 | T24: 16 | U24: 17 | V24: 18 | W24: 19 | X24: 20 | Y24: 21 | Z24: =Y24+1 -> 22 | AA24: =Z24+1 -> 23
B25: Threshold | C25: RGB | D25: Legend | E25: =$C$39 -> Green to Red Contrast | F25: =$C$40 -> Green to Pink Contrast | G25: =$C$41 -> Green to Purple Contrast | H25: =$C$42 -> Red to Blue Contrast | I25: =$C$43 -> Blue to Red Contrast | J25: =$C$44 -> Spectral | K25: =$C$45 -> Light, No Scale | L25: =$C$46 -> Brown Highlight High | M25: =$C$47 -> Brown Highlight Low | N25: =$C$48 -> High Focus | O25: =$C$49 -> Low Focus | P25: =$C$50 -> Center Loaded | Q25: =$C$51 -> Outlier Loaded | R25: =$C$52 -> Pairs | S25: =$C$53 -> Triplets | T25: =$C$54 -> Quads | U25: =$C$55 -> Quints | V25: =$C$56 -> Blue Purple Stepped | W25: =$C$57 -> Blue Stepped Red Tips | X25: =$C$58 -> Blue Green Stepped | Y25: =$C$59 -> Gray Stepped | Z25: =$C$60 -> Blue Smear | AA25: =$C$61 -> Green Smear
C26: 12566463 | D26: no data
B27: =$K$18+$J$18 -> 11000 | C27: 3631104 | D27: =TEXT($K$18,$E$18)&" to "&TEXT(B27,$E$18) -> 7.000 to 11.000
B28: =B27+$J$18 -> 15000 | C28: 5281818 | D28: =TEXT(B27,$E$18)&" to "&TEXT(B28,$E$18) -> 11.000 to 15.000
B29: =B28+$J$18 -> 19000 | C29: 6536550 | D29: 15.000 to 19.000
B30: 23000 | C30: 7002534 | D30: 19.000 to 23.000
B31: 27000 | C31: 9170905 | D31: 23.000 to 27.000
B32: 31000 | C32: 9167102 | D32: 27.000 to 31.000
B33: 35000 | C33: 6401789 | D33: 31.000 to 35.000
B34: 39000 | C34: 4419060 | D34: 35.000 to 39.000
B35: 43000 | C35: 2568407 | D35: 39.000 to 43.000
B36: 1e+14 | C36: 2490533 | D36: =TEXT(B35,$E$18)&" or more" -> 43.000 or more
B39: Color Scales | C39: Green to Red Contrast
C40: Green to Pink Contrast
C41: Green to Purple Contrast
C42: Red to Blue Contrast
C43: Blue to Red Contrast
C44: Spectral
C45: Light, No Scale
C46: Brown Highlight High
C47: Brown Highlight Low
C48: High Focus
C49: Low Focus
C50: Center Loaded
C51: Outlier Loaded
C52: Pairs
C53: Triplets
C54: Quads
C55: Quints
C56: Blue Purple Stepped
C57: Blue Stepped Red Tips
C58: Blue Green Stepped
C59: Gray Stepped
C60: Blue Smear
C61: Green Smear
B63: Selection | C63: 1
B65: Shape Index
B67: Recreate the shape index after you inserted a new map, added shapes or changed the shape order
